bitfinex/quotes_BTCUSD_20240918
["timestamp","ask_amount","ask_price","bid_price","bid_amount"]
[1726687003457,0.002922,60781.0,60780.0,0.493582]
[1726687003686,0.002922,60781.0,60780.0,0.58440309]
[1726687004149,0.002922,60781.0,60779.0,0.05265126]
[1726687004389,0.002922,60781.0,60778.0,0.005]
[1726687004639,0.493591,60779.0,60778.0,0.005]
[1726687004889,0.164558,60769.0,60765.0,0.164567]
[1726687005133,0.004568,60781.0,60755.0,0.002]
[1726687005377,0.004568,60781.0,60751.0,0.002]
[1726687005378,0.329093,60774.0,60751.0,0.002]
[1726687005637,0.00237881,60780.0,60752.0,0.01875]
[1726687005869,0.004568,60781.0,60778.0,0.003]
[1726687005870,1.251713,60779.0,60778.0,0.003]
[1726687006122,0.329113,60770.0,60762.0,0.329152]
[1726687006356,0.1,60779.0,60752.0,0.01875]
[1726687006357,0.164565,60766.0,60765.0,0.014]
[1726687006599,0.1,60779.0,60764.0,0.32914]
[1726687006600,0.329093,60774.0,60764.0,0.32914]
[1726687006856,0.004568,60781.0,60780.0,0.164527]
[1726687007097,0.004568,60781.0,60780.0,0.1809797]
[1726687007650,0.004568,60781.0,60765.0,0.1]
[1726687007651,0.164531,60779.0,60774.0,0.329087]
[1726687007903,0.333618,60781.0,60776.0,0.329072]
[1726687007904,0.004568,60781.0,60776.0,0.329072]
[1726687008154,0.004568,60781.0,60765.0,0.53746226]
[1726687008416,0.004568,60781.0,60780.0,0.493582]
[1726687008678,0.004568,60781.0,60780.0,0.003]
[1726687008929,0.004568,60781.0,60780.0,0.493582]
[1726687009184,0.004568,60781.0,60780.0,0.822637]
[1726687009445,0.004568,60781.0,60780.0,1.58915426]
[1726687009708,0.004568,60781.0,60780.0,1.32260743]
[1726687011664,0.004568,60781.0,60780.0,1.31060743]
[1726687011922,0.004568,60781.0,60780.0,0.98155243]
[1726687012167,0.004568,60781.0,60780.0,0.99555243]
[1726687012411,0.004568,60781.0,60780.0,0.98155243]
[1726687012932,0.004568,60781.0,60780.0,0.99555243]
[1726687013612,0.004568,60781.0,60780.0,0.66649743]
[1726687014059,0.004568,60781.0,60780.0,0.507582]
[1726687014064,0.004568,60781.0,60780.0,0.836637]
[1726687014301,0.004568,60781.0,60780.0,1.165692]
[1726687014766,0.004568,60781.0,60780.0,0.836637]
[1726687014990,0.004568,60781.0,60780.0,0.9861155]
[1726687015505,0.004568,60781.0,60780.0,0.9721155]
[1726687015980,0.004568,60781.0,60780.0,0.9841155]
[1726687016213,0.004568,60781.0,60780.0,0.9721155]
[1726687016446,0.004568,60781.0,60780.0,0.9861155]
[1726687016695,0.004568,60781.0,60780.0,0.9721155]
[1726687017160,0.004568,60781.0,60780.0,1.7652255]
[1726687017405,0.0042045,60801.0,60800.0,0.822367]
[1726687018162,0.0042045,60801.0,60800.0,0.49342]
[1726687018410,0.0042045,60801.0,60789.0,0.164501]
[1726687018647,0.0042045,60801.0,60784.0,0.1]
[1726687018879,0.0042045,60801.0,60800.0,0.169473]
[1726687019177,0.0042045,60801.0,60800.0,0.49342]
[1726687019375,0.0042045,60801.0,60800.0,0.822367]
[1726687019622,0.0042045,60801.0,60800.0,0.833367]
[1726687019853,0.0042045,60801.0,60800.0,0.50442]
[1726687020110,0.0042045,60801.0,60800.0,0.554862]
[1726687020373,0.0042045,60801.0,60800.0,0.214915]
[1726687020655,0.0042045,60801.0,60784.0,0.1]
[1726687020921,0.328965,60797.0,60787.0,0.329012]
[1726687021149,0.328965,60797.0,60771.0,0.43946226]
[1726687021150,0.328948,60800.0,60788.0,0.075803]
[1726687021398,0.16448,60798.0,60793.0,0.164491]
[1726687021694,0.16448,60798.0,60786.0,0.329022]
[1726687021695,0.328963,60797.0,60786.0,0.329022]
[1726687021902,0.164491,60794.0,60790.0,0.164499]
[1726687022149,0.0042045,60801.0,60787.0,0.0329022]
[1726687022150,0.328977,60795.0,60787.0,0.0329022]
[1726687022403,0.164482,60797.0,60792.0,0.164493]
[1726687022902,0.164491,60794.0,60788.0,0.32901]
[1726687023151,0.0042045,60801.0,60793.0,0.164491]
[1726687023409,0.0042045,60801.0,60787.0,0.0329022]
[1726687023651,0.00237881,60800.0,60787.0,0.1974092]
[1726687023893,0.0042045,60801.0,60796.0,0.328963]
[1726687024191,0.0042045,60801.0,60797.0,0.0328963]
[1726687024454,0.0042045,60801.0,60800.0,0.164473]
[1726687024713,0.0042045,60801.0,60800.0,0.49342]
[1726687024959,0.0042045,60801.0,60790.0,0.328999]
[1726687025215,0.164484,60796.0,60787.0,0.0329022]
[1726687025505,0.164484,60796.0,60772.0,0.03]
[1726687025506,0.164503,60789.0,60788.0,0.001]
[1726687025760,1.151521,60789.0,60788.0,0.001]
[1726687026019,1.480527,60789.0,60788.0,0.001]
[1726687026507,1.480527,60789.0,60762.0,0.329151]
[1726687026508,0.1,60789.0,60752.0,0.030823]
[1726687026814,0.164541,60775.0,60771.0,0.16455]
[1726687027005,0.32906,60780.0,60758.0,0.43746226]
[1726687027234,0.001,60789.0,60760.0,0.03]
[1726687027492,0.02582088,60782.0,60781.0,0.493575]
[1726687027726,0.001,60789.0,60781.0,0.4113137]
[1726687027968,0.001,60789.0,60762.0,0.329151]
[1726687028234,0.001,60789.0,60752.0,0.198823]
[1726687028235,0.43746226,60774.0,60752.0,0.000823]
[1726687028512,0.1,60776.0,60757.0,0.43746226]
[1726687028765,0.0732544,60784.0,60752.0,0.000823]
[1726687028766,0.00237881,60775.0,60752.0,0.000823]
[1726687028999,0.04883626,60784.0,60752.0,0.000823]
[1726687029000,0.1,60784.0,60752.0,0.000823]
[1726687029291,0.329045,60782.0,60772.0,0.164548]
[1726687029532,0.1944,60786.0,60754.0,0.002]
[1726687029533,0.98697197,60790.0,60782.0,0.16452]
[1726687029781,0.001,60789.0,60773.0,0.01974553]
[1726687030025,0.328958,60798.0,60784.0,0.329031]
[1726687030261,0.19534,60800.0,60778.0,0.00329033]
[1726687030501,0.19534,60800.0,60774.0,0.43746226]
[1726687030502,0.16449,60794.0,60789.0,0.164502]
[1726687030731,0.16449,60794.0,60784.0,0.32903]
[1726687030732,0.164483,60797.0,60788.0,0.32901]
[1726687030964,0.164503,60789.0,60775.0,0.023]
[1726687031226,0.164504,60789.0,60784.0,0.164514]
[1726687031481,0.164511,60786.0,60785.0,0.0164514]
[1726687031738,0.328994,60792.0,60779.0,0.164528]
[1726687031739,0.164515,60785.0,60779.0,0.164528]
[1726687031987,0.00237881,60791.0,60779.0,0.164528]
[1726687031988,0.164517,60784.0,60779.0,0.164528]
[1726687032243,0.164513,60786.0,60781.0,0.164522]
[1726687032472,0.328978,60795.0,60769.0,0.001644]
[1726687032473,0.07465444,60795.0,60769.0,0.001644]
[1726687032698,0.02581818,60795.0,60787.0,0.329016]
[1726687032930,0.164495,60792.0,60788.0,0.164504]
[1726687033251,0.329789,60797.0,60785.0,0.329024]
[1726687033482,0.329789,60797.0,60775.0,0.329081]
[1726687033483,0.164484,60796.0,60775.0,0.329081]
[1726687033705,0.16449,60794.0,60790.0,0.164499]
[1726687033957,0.000822,60797.0,60796.0,0.164484]
[1726687034184,0.000822,60797.0,60796.0,0.822422]
[1726687034414,0.000822,60797.0,60796.0,0.493453]
[1726687034911,0.000822,60797.0,60781.0,0.5005]
[1726687034912,0.000822,60797.0,60781.0,0.03298]
[1726687035157,0.000822,60797.0,60771.0,0.3591]
[1726687035158,0.329785,60797.0,60796.0,0.006]
[1726687035410,0.164509,60787.0,60781.0,0.329049]
[1726687035658,0.000822,60797.0,60782.0,0.0329049]
[1726687035659,0.00237881,60786.0,60782.0,0.0329049]
[1726687035912,0.328999,60791.0,60776.0,0.164536]
[1726687035913,0.329029,60785.0,60776.0,0.164536]
[1726687036158,0.3145,60791.0,60771.0,0.329103]
[1726687036159,0.164536,60777.0,60771.0,0.329103]
[1726687036404,0.329055,60780.0,60772.0,0.0659868]
[1726687036405,0.00237881,60776.0,60772.0,0.0659868]
[1726687036641,0.329031,60785.0,60777.0,0.164534]
[1726687036885,0.329031,60785.0,60774.0,0.164542]
[1726687036886,0.164534,60778.0,60774.0,0.164542]
[1726687037130,0.329031,60785.0,60775.0,0.02305288]
[1726687037131,0.04906669,60785.0,60775.0,0.02305288]
[1726687037367,0.04915378,60783.0,60775.0,0.02305288]
[1726687037626,0.04915378,60787.0,60781.0,0.164523]
[1726687037867,0.0491447,60788.0,60786.0,0.164511]
[1726687038115,0.23821806,60790.0,60783.0,0.164519]
[1726687038116,0.164509,60787.0,60783.0,0.164519]
[1726687038375,0.0491447,60788.0,60784.0,0.0493576]
[1726687038610,0.07371706,60790.0,60775.0,0.03105288]
[1726687038611,0.0491447,60787.0,60775.0,0.03105288]
[1726687038864,0.0491447,60787.0,60769.0,0.330758]
[1726687038865,0.07371706,60789.0,60771.0,0.329101]
[1726687038866,0.16453,60779.0,60771.0,0.329101]
[1726687039102,0.164537,60777.0,60769.0,0.001644]
[1726687039334,0.00237881,60776.0,60769.0,0.001644]
[1726687039585,1.33402129,60770.0,60769.0,0.001644]
[1726687039833,2.30072391,60770.0,60769.0,0.001644]
[1726687040070,2.30072391,60770.0,60742.0,0.329257]
[1726687040071,0.493801,60753.0,60742.0,0.329257]
[1726687040317,0.493801,60753.0,60739.0,0.329275]
[1726687040318,0.21375564,60753.0,60746.0,0.329239]
[1726687040547,0.21375564,60753.0,60742.0,0.329257]
[1726687040548,0.54295664,60753.0,60742.0,0.329257]
[1726687040839,0.04915564,60754.0,60746.0,0.329237]
[1726687041315,0.09837589,60757.0,60753.0,0.1646]
[1726687041316,0.04915564,60755.0,60753.0,0.1646]
[1726687041545,0.04915564,60756.0,60754.0,0.0499642]
[1726687041802,0.09837589,60759.0,60754.0,0.0499642]
[1726687041803,0.04915564,60759.0,60754.0,0.0499642]
[1726687042047,0.09837589,60762.0,60754.0,0.0499642]
[1726687042048,0.12293827,60761.0,60754.0,0.0499642]
[1726687042285,0.09837589,60762.0,60756.0,0.329185]
[1726687042286,0.04915564,60762.0,60756.0,0.329185]
[1726687042528,0.07378263,60764.0,60752.0,0.000823]
[1726687042529,0.04915564,60764.0,60752.0,0.000823]
[1726687042761,0.04915564,60764.0,60757.0,0.164588]
[1726687042762,0.164577,60762.0,60757.0,0.164588]
[1726687043001,0.04915564,60762.0,60758.0,0.0493777]
[1726687043246,0.04915564,60763.0,60758.0,0.0493777]
[1726687043499,0.21372364,60765.0,60758.0,0.0493777]
[1726687043751,0.07378263,60766.0,60759.0,0.329165]
[1726687043752,0.04915564,60764.0,60759.0,0.329165]
[1726687044005,0.09961003,60766.0,60758.0,0.0493777]
[1726687044006,0.0258274,60766.0,60760.0,0.0032917]
[1726687044252,0.0258274,60766.0,60765.0,0.493704]
[1726687044520,0.12296987,60779.0,60765.0,0.493704]
[1726687044521,0.04915564,60781.0,60766.0,0.023]
[1726687044758,0.04915564,60785.0,60784.0,0.164516]
[1726687045011,0.07378263,60787.0,60770.0,0.28160728]
[1726687045012,0.04915564,60787.0,60786.0,0.822557]
[1726687045256,0.04915564,60787.0,60781.0,0.329049]
[1726687045257,0.0011596,60786.0,60781.0,0.329049]
[1726687045500,0.0011596,60786.0,60771.0,0.1]
[1726687045501,0.0011596,60786.0,60785.0,0.493542]
[1726687045754,0.0011596,60786.0,60785.0,0.5428962]
[1726687046000,0.0011596,60786.0,60785.0,0.0493542]
[1726687046246,0.0011596,60786.0,60769.0,0.28160728]
[1726687046247,0.0011596,60786.0,60767.0,0.002]
[1726687046506,0.0011596,60786.0,60751.0,0.5206]
[1726687046507,0.0490056,60779.0,60751.0,0.5206]
[1726687046770,0.0490056,60781.0,60763.0,0.002]
[1726687047019,0.0490056,60784.0,60765.0,0.002]
[1726687047315,0.0011596,60786.0,60784.0,0.164516]
[1726687047516,0.02581921,60785.0,60784.0,0.164516]
[1726687047754,0.0011596,60786.0,60784.0,0.164516]
[1726687048235,0.0011596,60786.0,60775.0,0.329079]
[1726687048527,0.0011596,60786.0,60752.0,0.330026]
[1726687048528,0.00237881,60785.0,60757.0,0.002]
[1726687048763,0.00237881,60785.0,60752.0,0.090823]
[1726687048764,0.3291,60772.0,60763.0,0.164572]
[1726687049005,0.0490056,60775.0,60752.0,0.0107371]
[1726687049244,0.329095,60773.0,60758.0,0.329173]
[1726687049483,0.329095,60773.0,60759.0,0.329166]
[1726687049484,0.164569,60765.0,60759.0,0.329166]
[1726687049719,0.164564,60767.0,60761.0,0.329156]
[1726687049967,0.00237881,60766.0,60757.0,0.329177]
[1726687050211,0.00237881,60766.0,60758.0,0.04150329]
[1726687050457,0.329148,60763.0,60758.0,0.04150329]
[1726687050697,0.00237881,60762.0,60758.0,0.04150329]
[1726687050948,0.164581,60761.0,60752.0,0.000823]
[1726687051206,0.329148,60763.0,60752.0,0.000823]
[1726687051207,0.164598,60755.0,60752.0,0.000823]
[1726687051441,0.00237881,60760.0,60752.0,0.000823]
[1726687051442,0.493801,60753.0,60752.0,0.000823]
[1726687051923,0.19043172,60753.0,60752.0,0.000823]
[1726687052394,0.19043172,60753.0,60752.0,0.165426]
[1726687052395,0.02583172,60753.0,60752.0,0.165426]
[1726687052398,0.02583172,60753.0,60752.0,0.000823]
[1726687052631,0.02583172,60753.0,60752.0,0.5111766]
[1726687052875,0.02583172,60753.0,60752.0,0.8403836]
[1726687053126,0.02583172,60753.0,60752.0,0.5111766]
[1726687053354,0.164586,60759.0,60752.0,0.5111766]
[1726687053355,0.164589,60758.0,60753.0,0.164598]
[1726687053590,0.331159,60761.0,60752.0,0.000823]
[1726687053591,0.04893839,60760.0,60752.0,0.000823]
[1726687053821,0.164585,60759.0,60755.0,0.164593]
[1726687054065,0.164585,60759.0,60756.0,0.0494626]
[1726687054309,0.19041481,60759.0,60756.0,0.0494626]
[1726687054544,4e-05,60758.0,60756.0,0.0494626]
[1726687055733,4e-05,60758.0,60757.0,0.49377]
[1726687056005,4e-05,60758.0,60757.0,1.68384988]
[1726687056250,4e-05,60758.0,60757.0,1.23995506]
[1726687056493,4e-05,60758.0,60757.0,0.91077506]
[1726687057696,4e-05,60758.0,60757.0,0.58159506]
[1726687057949,4e-05,60758.0,60757.0,1.23995506]
[1726687058191,4e-05,60758.0,60757.0,1.80684988]
[1726687058432,4e-05,60758.0,60757.0,2.11302988]
[1726687058738,4e-05,60758.0,60757.0,1.33995506]
[1726687058979,4e-05,60758.0,60757.0,1.3497681]
[1726687059213,4e-05,60758.0,60757.0,1.3637681]
[1726687059457,4e-05,60758.0,60757.0,1.3497681]
[1726687059703,4e-05,60758.0,60757.0,1.3637681]
[1726687059951,4e-05,60758.0,60757.0,2.15984292]
[1726687060189,4e-05,60758.0,60757.0,1.8306757]
[1726687060427,4e-05,60758.0,60757.0,2.1598557]
[1726687060901,4e-05,60758.0,60757.0,2.38588937]
[1726687061134,0.02582296,60778.0,60777.0,0.822677]
[1726687061393,0.02582296,60778.0,60777.0,1.2340157]
[1726687061867,0.24690342,60790.0,60778.0,0.822665]
[1726687062109,0.164503,60789.0,60778.0,0.822665]
[1726687062342,0.164519,60784.0,60778.0,0.164533]
[1726687062577,0.1656716,60786.0,60778.0,0.822665]
[1726687063529,0.0258186,60780.0,60777.0,0.014]
[1726687063950,0.02819741,60780.0,60777.0,0.014]
[1726687063952,0.19272641,60780.0,60777.0,0.014]
[1726687064186,0.0258186,60780.0,60778.0,0.8405187]
[1726687064421,0.0258186,60780.0,60778.0,0.1963867]
[1726687064651,0.0258186,60780.0,60778.0,0.8545187]
[1726687064851,0.0258186,60780.0,60778.0,0.5114527]
[1726687065249,0.0258186,60780.0,60759.0,0.03298]
[1726687065458,0.329067,60778.0,60760.0,0.01008472]
[1726687065629,0.164547,60773.0,60769.0,0.164556]
[1726687065829,0.164547,60773.0,60759.0,0.03298]
[1726687065830,0.00237881,60775.0,60750.0,0.002]
[1726687066040,0.1011596,60786.0,60742.0,0.329258]
[1726687066041,0.1,60771.0,60752.0,0.000823]
[1726687066243,0.10237881,60771.0,60752.0,0.000823]
[1726687066450,0.164574,60763.0,60759.0,0.164584]
[1726687066666,0.10237881,60771.0,60760.0,0.164581]
[1726687066667,0.164571,60764.0,60760.0,0.164581]
[1726687066882,0.33,60772.0,60752.0,0.000823]
[1726687067088,0.1933,60767.0,60752.0,0.000823]
[1726687067303,0.00237881,60766.0,60752.0,0.000823]
[1726687067479,0.493801,60753.0,60752.0,0.000823]
[1726687067692,0.1646,60753.0,60752.0,0.000823]
[1726687068119,0.164565,60767.0,60752.0,0.001823]
[1726687068342,0.001646,60766.0,60758.0,0.329169]
[1726687068555,0.001646,60766.0,60765.0,0.164568]
[1726687068802,0.001646,60766.0,60765.0,0.493704]
[1726687069485,0.164572,60764.0,60759.0,0.0329169]
[1726687069701,0.001646,60766.0,60760.0,0.03620889]
[1726687069952,0.00237881,60765.0,60752.0,0.000823]
[1726687070172,0.329176,60758.0,60752.0,0.000823]
[1726687070421,0.00237881,60764.0,60752.0,0.000823]
[1726687070647,0.493801,60753.0,60752.0,0.000823]
[1726687071374,0.493801,60753.0,60752.0,0.011823]
[1726687071578,0.493801,60753.0,60752.0,0.000823]
[1726687071801,0.1646,60753.0,60752.0,0.000823]
[1726687072036,0.1646,60753.0,60752.0,0.014823]
[1726687072267,0.329193,60755.0,60752.0,0.0327665]
[1726687072496,0.3015,60757.0,60752.0,0.014823]
[1726687072728,0.164593,60756.0,60752.0,0.179426]
[1726687072934,0.164595,60755.0,60752.0,0.014823]
[1726687073170,0.164595,60755.0,60753.0,0.050864]
[1726687073397,0.466092,60757.0,60753.0,0.050864]
[1726687073623,0.3015,60757.0,60756.0,0.164592]
[1726687073851,0.02583119,60762.0,60753.0,0.050864]
[1726687074094,0.02583119,60762.0,60752.0,0.014823]
[1726687074095,0.02583119,60762.0,60761.0,0.164579]
[1726687074326,0.001686,60766.0,60765.0,0.493704]
[1726687074568,0.001686,60766.0,60765.0,1.151976]
[1726687074815,0.001686,60766.0,60765.0,1.97885718]
[1726687075266,0.001686,60766.0,60765.0,1.36815997]
[1726687075976,0.001686,60766.0,60765.0,1.81200189]
[1726687076659,0.001686,60766.0,60765.0,1.81400189]
[1726687077123,0.001686,60766.0,60765.0,1.82800189]
[1726687077355,0.001686,60766.0,60765.0,1.81200189]
[1726687077582,0.001686,60766.0,60765.0,1.36815997]
[1726687077852,0.001686,60766.0,60765.0,0.014]
[1726687078096,0.001686,60766.0,60765.0,0.83684]
[1726687078339,0.02750814,60766.0,60765.0,0.82284]
[1726687078588,0.02750814,60766.0,60765.0,1.165976]
[1726687078839,0.02750814,60766.0,60765.0,1.92495392]
[1726687079153,0.02750814,60766.0,60765.0,2.1020395]
[1726687079384,0.001686,60766.0,60765.0,2.1020395]
[1726687079623,0.001686,60766.0,60765.0,2.2250395]
[1726687079873,0.001686,60766.0,60765.0,2.62716045]
[1726687080128,0.001686,60766.0,60765.0,2.62916045]
[1726687080363,0.001686,60766.0,60765.0,2.30002445]
[1726687080599,0.001686,60766.0,60765.0,2.67516045]
[1726687080830,4e-05,60779.0,60765.0,2.67516045]
[1726687080831,4e-05,60779.0,60778.0,1.69557292]
[1726687081073,4e-05,60779.0,60778.0,1.41481658]
[1726687081338,4e-05,60779.0,60778.0,0.65668458]
[1726687081578,4e-05,60779.0,60765.0,0.29606558]
[1726687081579,0.164534,60778.0,60765.0,0.29606558]
[1726687081821,4e-05,60779.0,60764.0,0.329142]
[1726687081822,0.00237881,60777.0,60764.0,0.329142]
[1726687082058,0.00237881,60777.0,60770.0,0.164554]
[1726687082059,0.37788739,60776.0,60770.0,0.164554]
[1726687082301,0.37788739,60776.0,60771.0,0.2139197]
[1726687082302,0.21334939,60776.0,60771.0,0.2139197]
[1726687082544,0.21334939,60776.0,60771.0,0.0493677]
[1726687082545,0.00237881,60775.0,60771.0,0.0493677]
[1726687083090,0.00237881,60775.0,60769.0,0.329115]
[1726687083337,0.00237881,60775.0,60774.0,0.493632]
[1726687083338,0.02582236,60775.0,60774.0,0.493632]
[1726687083581,4e-05,60779.0,60771.0,0.329104]
[1726687083817,4e-05,60779.0,60753.0,0.03]
[1726687083818,0.329071,60777.0,60772.0,0.0329104]
[1726687084063,4e-05,60779.0,60758.0,0.1]
[1726687084064,0.00237881,60776.0,60766.0,0.32913]
[1726687084307,0.00237881,60776.0,60758.0,0.1]
[1726687084308,0.37090939,60775.0,60758.0,0.429174]
[1726687084545,0.37090939,60775.0,60750.0,0.0098452]
[1726687084546,0.164568,60765.0,60761.0,0.164578]
[1726687084787,0.164568,60765.0,60740.0,0.0628176]
[1726687084788,0.164585,60759.0,60755.0,0.164593]
[1726687085031,0.1847,60770.0,60749.0,0.44384192]
[1726687085032,0.04880939,60766.0,60749.0,0.44384192]
[1726687085285,0.04880939,60766.0,60740.0,0.10262196]
[1726687085286,0.493801,60753.0,60740.0,0.1674526]
[1726687085578,1.152203,60753.0,60740.0,0.0028176]
[1726687085839,0.493899,60741.0,60740.0,0.0028176]
[1726687086123,0.87188196,60741.0,60740.0,0.0028176]
[1726687086386,0.87188196,60741.0,60720.0,0.000823]
[1726687086387,1.152525,60736.0,60720.0,0.000823]
[1726687086659,0.494046,60723.0,60720.0,0.000823]
[1726687086922,1.152774,60723.0,60722.0,0.0038772]
[1726687087167,0.0729849,60723.0,60722.0,0.0038772]
[1726687087414,0.42666996,60725.0,60722.0,0.0038772]
[1726687087415,0.04865915,60725.0,60722.0,0.0038772]
[1726687087667,0.164682,60723.0,60722.0,0.0038772]
[1726687087937,0.00237881,60725.0,60722.0,0.0038772]
[1726687087938,0.164681,60724.0,60722.0,0.0038772]
[1726687088186,0.167682,60723.0,60722.0,0.0048772]
[1726687088422,0.167682,60723.0,60722.0,0.0038772]
[1726687088659,0.497046,60723.0,60722.0,0.0058772]
[1726687088896,0.003,60723.0,60722.0,0.0058772]
[1726687089145,0.167682,60723.0,60722.0,0.0058772]
[1726687089389,0.497046,60723.0,60722.0,0.0058772]
[1726687089641,0.97869902,60723.0,60722.0,0.0058772]
[1726687089882,0.97869902,60723.0,60720.0,0.000823]
[1726687089883,0.923437,60721.0,60720.0,0.000823]
[1726687090125,0.923437,60721.0,60714.0,0.001644]
[1726687090126,0.923517,60715.0,60714.0,0.001644]
[1726687090365,1.252924,60715.0,60714.0,0.001544]
[1726687090852,1.2787753,60715.0,60714.0,0.001544]
[1726687091323,1.2817753,60715.0,60714.0,0.001544]
[1726687092295,1.2817753,60715.0,60693.0,0.165585]
[1726687092296,0.03,60709.0,60693.0,0.000823]
[1726687092537,1.25541881,60709.0,60693.0,0.000823]
[1726687093261,0.82597881,60709.0,60693.0,0.000823]
[1726687093495,0.49416,60709.0,60694.0,0.329521]
[1726687093738,0.49416,60709.0,60699.0,0.164747]
[1726687093739,0.8236,60709.0,60699.0,0.164747]
[1726687093987,0.16472,60709.0,60708.0,0.002644]
[1726687094233,0.16472,60709.0,60708.0,0.166366]
[1726687094234,0.009,60709.0,60708.0,0.166366]
[1726687094539,0.009,60709.0,60708.0,0.84229032]
[1726687094772,0.01,60709.0,60708.0,1.27173532]
[1726687095013,0.3107,60734.0,60711.0,0.329428]
[1726687095253,0.3107,60734.0,60720.0,0.49407]
[1726687095254,0.24702337,60721.0,60720.0,0.49407]
[1726687095499,0.640008,60734.0,60721.0,0.049407]
[1726687095500,0.98802839,60733.0,60721.0,0.049407]
[1726687095739,0.98802839,60733.0,60720.0,0.164688]
[1726687095740,0.329341,60728.0,60720.0,0.164688]
[1726687095984,0.164678,60725.0,60720.0,0.164688]
[1726687096467,0.329331,60730.0,60715.0,0.329407]
[1726687096710,0.329331,60730.0,60716.0,0.0429407]
[1726687096711,0.164676,60725.0,60716.0,0.0429407]
[1726687097208,0.001,60728.0,60724.0,0.164678]
[1726687097451,0.3107,60734.0,60719.0,0.329381]
[1726687097681,0.3107,60734.0,60724.0,0.164677]
[1726687097919,0.0258422,60736.0,60722.0,0.00329334]
[1726687098177,0.329261,60743.0,60717.0,0.00329323]
[1726687098442,1.30412839,60744.0,60718.0,0.33139]
[1726687098443,0.3161,60744.0,60718.0,0.33139]
[1726687098676,0.3161,60744.0,60735.0,0.164647]
[1726687098677,0.164634,60741.0,60735.0,0.164647]
[1726687098907,0.164634,60741.0,60736.0,0.164646]
[1726687099381,0.3161,60744.0,60720.0,0.329378]
[1726687099382,0.98802839,60742.0,60720.0,0.329378]
[1726687099620,0.3161,60744.0,60719.0,0.14385412]
[1726687099621,0.164666,60729.0,60724.0,0.164678]
[1726687099874,0.3161,60744.0,60720.0,0.1]
[1726687099875,0.02583959,60741.0,60720.0,0.1]
[1726687100116,0.165652,60734.0,60729.0,0.164664]
[1726687100354,0.164648,60736.0,60730.0,0.378725]
[1726687100583,0.164648,60736.0,60730.0,0.049401]
[1726687101077,0.164648,60736.0,60732.0,0.164656]
[1726687101314,0.35505759,60741.0,60730.0,0.049401]
[1726687101315,0.164642,60738.0,60730.0,0.049401]
[1726687101573,0.164642,60738.0,60715.0,0.362385]
[1726687101574,0.00237881,60737.0,60716.0,0.1]
[1726687101834,0.164645,60737.0,60732.0,0.164656]
[1726687102137,0.329306,60734.0,60714.0,0.01021071]
[1726687102410,0.329306,60734.0,60707.0,0.13]
[1726687102411,0.00237881,60733.0,60719.0,0.329383]
[1726687102653,0.00237881,60733.0,60719.0,0.164691]
[1726687102654,0.164683,60723.0,60719.0,0.164691]
[1726687102885,0.164683,60723.0,60716.0,0.329399]
[1726687102886,0.00237881,60733.0,60716.0,0.329399]
[1726687103121,0.00237881,60733.0,60717.0,0.0658812]
[1726687103122,0.164681,60724.0,60717.0,0.0658812]
[1726687103366,0.00237881,60733.0,60711.0,0.1]
[1726687103367,0.164669,60728.0,60711.0,0.1]
[1726687103596,0.164669,60728.0,60726.0,0.000822]
[1726687103869,0.16704981,60727.0,60726.0,0.000822]
[1726687104447,1.15507581,60727.0,60726.0,0.000822]
[1726687104659,1.15507581,60727.0,60704.0,0.0039772]
[1726687104660,0.49416,60709.0,60704.0,0.0039772]
[1726687104943,0.49416,60709.0,60708.0,0.001544]
[1726687104944,1.15304,60709.0,60708.0,0.001544]
[1726687105178,1.93638,60709.0,60708.0,0.001444]
[1726687105658,1.93638,60709.0,60668.0,0.0039772]
[1726687105659,0.19476,60694.0,60668.0,0.0039772]
[1726687105891,0.3014,60697.0,60668.0,0.0039772]
[1726687105892,0.953897,60687.0,60668.0,0.0039772]
[1726687106128,1.643015,60687.0,60668.0,0.0039772]
[1726687106390,1.698015,60687.0,60668.0,0.0039772]
[1726687106628,0.164828,60669.0,60668.0,0.0039772]
[1726687106862,0.164828,60669.0,60668.0,0.0038772]
[1726687106863,0.924142,60669.0,60668.0,0.0038772]
[1726687107101,0.924142,60669.0,60659.0,0.0032332]
[1726687107102,0.924142,60669.0,60661.0,0.000722]
[1726687107103,0.977237,60662.0,60661.0,0.000722]
[1726687107337,0.977237,60662.0,60647.0,0.000823]
[1726687107338,1.284027,60657.0,60647.0,0.000823]
[1726687107615,0.264877,60651.0,60647.0,0.000823]
[1726687107868,0.69658851,60651.0,60647.0,0.000823]
[1726687108113,0.97976581,60651.0,60647.0,0.000823]
[1726687108344,1.254142,60651.0,60647.0,0.000823]
[1726687108831,0.494632,60651.0,60647.0,0.000823]
[1726687109072,0.594632,60651.0,60647.0,0.000823]
[1726687109903,0.264877,60651.0,60647.0,0.000823]
[1726687110390,0.009,60651.0,60650.0,0.0049772]
[1726687110636,0.009,60651.0,60650.0,0.51668522]
[1726687110880,0.009,60651.0,60650.0,0.84974297]
[1726687111129,0.24717194,60668.0,60667.0,0.164834]
[1726687111371,0.24717194,60668.0,60667.0,0.494502]
[1726687111623,0.3283,60685.0,60660.0,0.43476761]
[1726687111624,0.57674894,60684.0,60660.0,0.43476761]
[1726687111858,0.24717194,60684.0,60677.0,0.164806]
[1726687112100,0.24717194,60684.0,60674.0,0.329626]
[1726687112101,0.164793,60682.0,60674.0,0.329629]
[1726687112334,0.03,60696.0,60673.0,0.164815]
[1726687112583,0.5079,60698.0,60661.0,0.37317676]
[1726687112584,0.43476761,60685.0,60661.0,0.37317676]
[1726687112828,0.164805,60678.0,60661.0,0.04347676]
[1726687113071,0.03,60691.0,60661.0,0.04347676]
[1726687113072,0.164794,60682.0,60662.0,0.0032966]
[1726687113336,0.164787,60685.0,60678.0,0.164804]
[1726687113568,0.164787,60685.0,60674.0,0.329628]
[1726687113569,0.329561,60687.0,60675.0,0.32962]
[1726687113811,0.329561,60687.0,60669.0,0.329656]